[Event "Bangabandhu Premier Div League 2023-24"]
[Site "Dhaka"]
[Date "2024.02.01"]
[Round "1.8"]
[White "Diya Chowdhury"]
[Black "Harikrishnan.A.Ra"]
[Result "0-1"]
[ECO "C77"]
[WhiteElo "1881"]
[BlackElo "2454"]
[Annotator "ChessBase"]
[PlyCount "74"]
[EventDate "2024.02.01"]
[EventCountry "BAN"]
[SourceTitle "playchess.com"]
[Source "ChessBase"]
[SourceQuality "1"]
[TimeControl "40/5400+30:1800+30"]

1. e4 {[%emt 0:00:10]} e5 {[%emt 0:00:13]} 2. Nf3 {[%emt 0:00:13]} Nc6 {[%emt 0:00:05]} 3. Bb5 {[%emt 0:00:18]} a6 {[%emt 0:00:06]} 4. Ba4 {[%emt 0:00:06]} Nf6 {[%emt 0:00:04]} 5. Qe2 {[%emt 0:00:13]} d6 {[%emt 0:00:11]} 6. c3 {[%emt 0:00:25]} g6 {[%emt 0:00:59]} 7. O-O {[%emt 0:00:25]} b5 {[%emt 0:04:09]} 8. Bb3 {[%emt 0:01:23]} Bg7 {[%emt 0:00:07]} 9. Rd1 {[%emt 0:01:01]} O-O {[%emt 0:01:36]} 10. d4 {[%emt 0:01:33]} exd4 {[%emt 0:02:29]} 11. cxd4 {[%emt 0:00:39]} Re8 {[%emt 0:03:50]} 12. Nc3 {[%emt 0:02:48]} Na5 {[%emt 0:16:29]} 13. Bg5 {[%emt 0:17:01]} h6 {[%emt 0:04:40]} 14. Bxf6 {[%emt 0:02:05]} Bxf6 {[%emt 0:00:56]} 15. Bc2 {[%emt 0:03:41]} Bg7 {[%emt 0:03:08]} 16. h3 {[%emt 0:09:08]} Bb7 {[%emt 0:00:37]} 17. d5 {[%emt 0:13:41]} Nc4 {[%emt 0:01:50]} 18. Bd3 {[%emt 0:00:31]} Bxc3 {[%emt 0:11:49]} 19. Bxc4 {[%emt 0:04:55]} Bg7 {[%emt 0:02:07]} 20. Bb3 {[%emt 0:00:17]} f5 {[%emt 0:02:50]} 21. Qc2 {[%emt 0:07:51]} Rxe4 {[%emt 0:02:07]} 22. a4 {[%emt 0:01:27]} bxa4 {[%emt 0:09:10]} 23. Ra2 {[%emt 0:32:09]} a3 24. Rxa3 {[%emt 0:00:00]} Rb4 {[%emt 0:32:58]} 25. Ra4 Rxa4 {[%emt 0:00:00]} 26. Bxa4 {[%emt 0:00:00]} Rb8 {[%emt 0:00:00]} 27. Re1 {[%emt 0:00:00]} Qf8 {[%emt 0:00:00]} 28. Nh4 {[%emt 0:00:00]} Kh7 {[%emt 0:00:00]} 29. Re6 {[%emt 0:00:00]} Bxd5 {[%emt 0:00:00]} 30. Rxg6 {[%emt 0:00:00]} Be4 {[%emt 0:00:00]} 31. Qxc7 {[%emt 0:00:00]} Rxb2 {[%emt 0:00:00]} 32. Rxd6 {[%emt 0:00:00]} Rb7 {[%emt 0:02:20]} 33. Qc5 {[%emt 0:01:41]} Qe7 {[%emt 0:00:34]} 34. Ng6 {[%emt 0:00:23]} Rb1+ {[%emt 0:01:27]} 35. Kh2 {[%emt 0:00:18]} Qg5 {[%emt 0:00:18]} 36. f3 {[%emt 0:03:14]} Rb2 {[%emt 0:00:11]} 37. Qg1 {[%emt 0:00:52]} Bxf3 {[%emt 0:00:15]} 0-1

[Event "Bangabandhu Premier Div League 2023-24"]
[Site "Dhaka"]
[Date "2024.02.01"]
[Round "1.9"]
[White "Hossain, Enamul"]
[Black "Pranav Vijay"]
[Result "0-1"]
[ECO "C78"]
[WhiteElo "2372"]
[BlackElo "2252"]
[Annotator "ChessBase"]
[PlyCount "76"]
[EventDate "2024.02.01"]
[EventCountry "BAN"]
[SourceTitle "playchess.com"]
[Source "ChessBase"]
[SourceQuality "1"]
[TimeControl "40/5400+30:1800+30"]

1. e4 {[%emt 0:00:06]} e5 {[%emt 0:00:12]} 2. Nf3 {[%emt 0:00:20]} Nc6 {[%emt 0:00:08]} 3. Bb5 {[%emt 0:00:36]} a6 {[%emt 0:00:25]} 4. Ba4 {[%emt 0:00:29]} Nf6 {[%emt 0:01:07]} 5. O-O {[%emt 0:00:55]} b5 {[%emt 0:03:55]} 6. Bb3 {[%emt 0:01:05]} Bc5 {[%emt 0:00:08]} 7. c3 {[%emt 0:01:23]} d6 {[%emt 0:00:19]} 8. d4 {[%emt 0:00:27]} Bb6 {[%emt 0:00:07]} 9. Be3 {[%emt 0:00:31]} O-O {[%emt 0:07:28]} 10. Nbd2 {[%emt 0:02:12]} h6 {[%emt 0:01:33]} 11. h3 {[%emt 0:00:25]} Re8 {[%emt 0:01:09]} 12. Re1 {[%emt 0:01:52]} Bb7 {[%emt 0:05:21]} 13. d5 {[%emt 0:13:45]} Ne7 {[%emt 0:01:13]} 14. Bxb6 {[%emt 0:00:33]} cxb6 {[%emt 0:00:02]} 15. a4 {[%emt 0:00:23]} bxa4 {[%emt 0:00:36]} 16. Bxa4 {[%emt 0:00:08]} b5 {[%emt 0:00:06]} 17. Bc2 {[%emt 0:00:15]} Qc7 {[%emt 0:07:01]} 18. c4 {[%emt 0:05:03]} Nd7 {[%emt 0:06:00]} 19. cxb5 {[%emt 0:05:20]} axb5 {[%emt 0:00:28]} 20. Bd3 {[%emt 0:03:27]} Rxa1 {[%emt 0:06:57]} 21. Qxa1 {[%emt 0:00:08]} Qb6 {[%emt 0:02:10]} 22. b4 {[%emt 0:12:34]} Ra8 {[%emt 0:05:47]} 23. Qd1 {[%emt 0:24:25]} f5 {[%emt 0:05:26]} 24. exf5 {[%emt 0:04:06]} Nxd5 {[%emt 0:03:24]} 25. Ne4 {[%emt 0:01:19]} N7f6 {[%emt 0:16:38]} 26. Bc2 {[%emt 0:12:01]} Kh7 {[%emt 0:03:46]} 27. Nxf6+ {[%emt 0:00:09]} Nxf6 {[%emt 0:04:02]} 28. Bb3 {[%emt 0:00:30]} Rc8 {[%emt 0:02:30]} 29. Re3 {[%emt 0:03:48]} Bxf3 {[%emt 0:04:55]} 30. Qxf3 {[%emt 0:03:04]} e4 {[%emt 0:05:18]} 31. Qg3 {[%emt 0:00:27]} d5 {[%emt 0:00:53]} 32. Qg6+ {[%emt 0:01:35]} Kh8 {[%emt 0:00:02]} 33. g4 {[%emt 0:01:45]} Qa7 {[%emt 0:03:08]} 34. Kg2 {[%emt 0:01:51]} Qa1 {[%emt 0:00:19]} 35. Bxd5 {[%emt 0:00:31]} Nxd5 {[%emt 0:00:56]} 36. Rxe4 {[%emt 0:00:01]} Qa8 {[%emt 0:00:20]} 37. Kg3 {[%emt 0:00:57]} Rc3+ {[%emt 0:01:35]} 38. f3 {[%emt 0:00:24]} Nf6 {[%emt 0:00:29]} 0-1

[Event "Bangabandhu Premier Div League 2023-24"]
[Site "Dhaka"]
[Date "2024.02.01"]
[Round "1.10"]
[White "Murshed, Niaz"]
[Black "Chigaev, Maksim"]
[Result "0-1"]
[ECO "D26"]
[WhiteElo "2363"]
[BlackElo "2622"]
[Annotator "ChessBase"]
[PlyCount "104"]
[EventDate "2024.02.01"]
[EventCountry "BAN"]
[SourceTitle "playchess.com"]
[Source "ChessBase"]
[SourceQuality "1"]
[TimeControl "40/5400+30:1800+30"]

1. d4 {[%emt 0:00:09]} Nf6 {[%emt 0:00:08]} 2. Nf3 {[%emt 0:00:11]} d5 {[%emt 0:00:18]} 3. c4 {[%emt 0:01:18]} e6 {[%emt 0:00:10]} 4. Nc3 {[%emt 0:01:15]} dxc4 {[%emt 0:00:44]} 5. e3 {[%emt 0:02:23]} a6 {[%emt 0:00:40]} 6. Bxc4 {[%emt 0:02:05]} b5 {[%emt 0:00:22]} 7. Be2 {[%emt 0:09:18]} Bb7 {[%emt 0:00:19]} 8. O-O {[%emt 0:00:21]} Nbd7 {[%emt 0:00:36]} 9. b3 {[%emt 0:04:31]} c5 {[%emt 0:03:27]} 10. Bb2 {[%emt 0:00:09]} Be7 {[%emt 0:00:13]} 11. dxc5 {[%emt 0:03:36]} Nxc5 {[%emt 0:14:30]} 12. Qxd8+ {[%emt 0:13:44]} Rxd8 {[%emt 0:00:09]} 13. Rad1 {[%emt 0:00:14]} Rc8 {[%emt 0:03:55]} 14. Nd4 {[%emt 0:07:15]} O-O {[%emt 0:06:31]} 15. Rc1 {[%emt 0:02:24]} Rfd8 {[%emt 0:13:40]} 16. Rfd1 {[%emt 0:00:59]} g6 {[%emt 0:02:22]} 17. b4 {[%emt 0:05:16]} Ncd7 {[%emt 0:02:54]} 18. a3 {[%emt 0:00:10]} Nb6 {[%emt 0:01:02]} 19. Nb3 {[%emt 0:01:04]} Rxd1+ {[%emt 0:02:16]} 20. Nxd1 {[%emt 0:03:47]} Rxc1 {[%emt 0:00:42]} 21. Bxc1 {[%emt 0:00:22]} Na4 {[%emt 0:03:29]} 22. f3 {[%emt 0:12:18]} Nd7 {[%emt 0:01:14]} 23. e4 {[%emt 0:02:07]} f5 {[%emt 0:02:04]} 24. exf5 {[%emt 0:07:06]} exf5 {[%emt 0:00:37]} 25. Be3 {[%emt 0:05:14]} Bd5 {[%emt 0:01:02]} 26. Na1 {[%emt 0:02:57]} Bf6 {[%emt 0:00:57]} 27. Nc2 {[%emt 0:00:17]} Kf7 {[%emt 0:01:08]} 28. Bd4 {[%emt 0:01:19]} Bb3 {[%emt 0:07:41]} 29. Bxf6 {[%emt 0:01:30]} Kxf6 {[%emt 0:00:40]} 30. Nd4 {[%emt 0:03:28]} Bxd1 {[%emt 0:00:45]} 31. Bxd1 {[%emt 0:00:09]} Ke5 {[%emt 0:00:20]} 32. Ne2 {[%emt 0:04:45]} Ndb6 {[%emt 0:06:53]} 33. Kf2 {[%emt 0:01:33]} Nb2 {[%emt 0:03:16]} 34. Bc2 {[%emt 0:01:18]} N6c4 {[%emt 0:00:24]} 35. f4+ {[%emt 0:00:09]} Kd5 {[%emt 0:03:06]} 36. Nc3+ {[%emt 0:00:13]} Kc6 {[%emt 0:00:50]} 37. Nb1 {[%emt 0:00:10]} Kd5 {[%emt 0:04:48]} 38. Nc3+ {[%emt 0:00:08]} Kd6 {[%emt 0:00:02]} 39. Nb1 {[%emt 0:00:20]} Nb6 {[%emt 0:00:03]} 40. h3 {[%emt 0:01:45]} Kd5 {[%emt 0:01:43]} 41. g4 {[%emt 0:13:00]} fxg4 {[%emt 0:00:12]} 42. hxg4 {[%emt 0:00:04]} Kd4 {[%emt 0:00:05]} 43. f5 {[%emt 0:01:37]} Nd3+ {[%emt 0:03:06]} 44. Ke2 {[%emt 0:00:12]} Ne5 {[%emt 0:04:53]} 45. fxg6 {[%emt 0:01:34]} hxg6 {[%emt 0:00:11]} 46. Nd2 {[%emt 0:02:34]} Nbc4 {[%emt 0:11:07]} 47. g5 {[%emt 0:14:32]} Nxa3 {[%emt 0:01:42]} 48. Be4 {[%emt 0:00:06]} Nac4 {[%emt 0:00:51]} 49. Bb7 {[%emt 0:00:07]} Nxd2 {[%emt 0:00:52]} 50. Kxd2 {[%emt 0:00:08]} Nc4+ {[%emt 0:00:38]} 51. Ke2 {[%emt 0:04:49]} Nd6 {[%emt 0:00:06]} 52. Bxa6 {[%emt 0:00:00]} Kc4 {[%emt 0:00:06]} 0-1

[Event "Bangabandhu Premier Div League 2023-24"]
[Site "Dhaka"]
[Date "2024.02.01"]
[Round "1.11"]
[White "Iniyan, Pa"]
[Black "Narayanan, Srinath"]
[Result "1/2-1/2"]
[ECO "D27"]
[WhiteElo "2515"]
[BlackElo "2552"]
[Annotator "ChessBase"]
[PlyCount "47"]
[EventDate "2024.02.01"]
[EventCountry "BAN"]
[SourceTitle "playchess.com"]
[Source "ChessBase"]
[SourceQuality "1"]
[TimeControl "40/5400+30:1800+30"]

1. d4 {[%emt 0:00:47]} d5 {[%emt 0:00:26]} 2. c4 {[%emt 0:00:10]} dxc4 {[%emt 0:00:50]} 3. Nf3 {[%emt 0:00:35]} Nf6 {[%emt 0:00:21]} 4. e3 {[%emt 0:00:11]} e6 {[%emt 0:00:20]} 5. Bxc4 {[%emt 0:00:12]} c5 {[%emt 0:00:15]} 6. O-O {[%emt 0:00:13]} a6 {[%emt 0:00:09]} 7. Nbd2 {[%emt 0:09:43]} cxd4 {[%emt 0:02:45]} 8. Nxd4 {[%emt 0:00:14]} Bd6 {[%emt 0:00:13]} 9. b3 {[%emt 0:12:45]} O-O {[%emt 0:00:43]} 10. Bb2 {[%emt 0:00:22]} e5 {[%emt 0:00:41]} 11. N4f3 {[%emt 0:13:01]} Nc6 {[%emt 0:00:12]} 12. Be2 {[%emt 0:00:25]} Bc7 {[%emt 0:11:30]} 13. Nc4 {[%emt 0:03:23]} e4 {[%emt 0:01:41]} 14. Qxd8 {[%emt 0:25:38]} Rxd8 {[%emt 0:00:25]} 15. Nd4 {[%emt 0:00:09]} Nb4 {[%emt 0:22:11]} 16. a3 {[%emt 0:05:25]} Nbd5 {[%emt 0:00:27]} 17. a4 {[%emt 0:01:45]} Bg4 {[%emt 0:09:22]} 18. Bxg4 {[%emt 0:01:53]} Nxg4 {[%emt 0:00:03]} 19. h3 {[%emt 0:00:14]} Ngf6 {[%emt 0:00:29]} 20. Rfd1 {[%emt 0:02:11]} Ne7 {[%emt 0:10:42]} 21. Ba3 {[%emt 0:05:50]} Ned5 {[%emt 0:10:52]} 22. Bb2 {[%emt 0:04:31]} Ne7 {[%emt 0:00:19]} 23. Ba3 {[%emt 0:01:22]} Ned5 {[%emt 0:00:49]} 24. Bb2 {[%emt 0:11:31]} 1/2-1/2

[Event "Bangabandhu Premier Div League 2023-24"]
[Site "Dhaka"]
[Date "2024.02.01"]
[Round "1.12"]
[White "Nayem, Haque"]
[Black "Anata, Choudhury"]
[Result "1/2-1/2"]
[ECO "B51"]
[WhiteElo "2092"]
[BlackElo "2196"]
[Annotator "ChessBase"]
[PlyCount "60"]
[EventDate "2024.02.01"]
[EventCountry "BAN"]
[SourceTitle "playchess.com"]
[Source "ChessBase"]
[SourceQuality "1"]
[TimeControl "40/5400+30:1800+30"]

1. e4 {[%emt 0:00:08]} c5 {[%emt 0:00:13]} 2. Nf3 {[%emt 0:00:02]} d6 {[%emt 0:00:18]} 3. Bb5+ {[%emt 0:00:07]} Nd7 {[%emt 0:00:14]} 4. a4 {[%emt 0:00:06]} Ngf6 {[%emt 0:00:23]} 5. Nc3 {[%emt 0:00:09]} g6 {[%emt 0:00:23]} 6. a5 {[%emt 0:00:33]} Bg7 {[%emt 0:00:50]} 7. O-O {[%emt 0:00:14]} a6 {[%emt 0:00:39]} 8. Be2 {[%emt 0:00:02]} O-O {[%emt 0:00:15]} 9. d3 {[%emt 0:00:05]} b5 {[%emt 0:01:47]} 10. axb6 {[%emt 0:00:08]} a5 {[%emt 0:06:20]} 11. Na4 {[%emt 0:24:49]} Nxb6 {[%emt 0:10:33]} 12. Nd2 {[%emt 0:09:29]} Nxa4 {[%emt 0:05:34]} 13. Rxa4 {[%emt 0:00:25]} Bd7 {[%emt 0:00:53]} 14. Ra3 {[%emt 0:01:30]} Ne8 {[%emt 0:37:22]} 15. Nc4 {[%emt 0:12:11]} a4 {[%emt 0:00:27]} 16. Ra2 {[%emt 0:15:17]} Bc6 {[%emt 0:12:03]} 17. Bf3 {[%emt 0:01:20]} Nc7 {[%emt 0:01:23]} 18. Nb6 {[%emt 0:03:40]} Ra6 {[%emt 0:01:34]} 19. Nd5 {[%emt 0:00:55]} e6 {[%emt 0:01:25]} 20. Nxc7 {[%emt 0:06:01]} Qxc7 {[%emt 0:00:08]} 21. Be2 {[%emt 0:11:42]} Rb6 {[%emt 0:07:11]} 22. c3 {[%emt 0:00:43]} Rb7 {[%emt 0:06:19]} 23. Qd2 {[%emt 0:00:41]} c4 {[%emt 0:00:44]} 24. Re1 {[%emt 0:01:54]} cxd3 {[%emt 0:00:16]} 25. Bxd3 {[%emt 0:00:12]} Rd8 {[%emt 0:01:02]} 26. Qe2 {[%emt 0:02:16]} Ra8 {[%emt 0:02:45]} 27. Qc2 {[%emt 0:05:39]} Rab8 {[%emt 0:01:11]} 28. Qe2 {[%emt 0:00:07]} Ra8 {[%emt 0:00:24]} 29. Qc2 {[%emt 0:00:03]} Rab8 {[%emt 0:00:16]} 30. Qe2 {[%emt 0:00:34]} Ra8 {[%emt 0:02:06]} 1/2-1/2

[Event "Bangabandhu Premier Div League 2023-24"]
[Site "Dhaka"]
[Date "2024.02.02"]
[Round "2.1"]
[White "Mohammad Minhaz Uddin"]
[Black "Mohammad Fahad, Rahman"]
[Result "0-1"]
[ECO "B33"]
[WhiteElo "2224"]
[BlackElo "2418"]
[Annotator "RC"]
[PlyCount "109"]
[EventDate "2024.02.01"]
[EventCountry "BAN"]
[SourceTitle "playchess.com"]
[Source "ChessBase"]
[SourceQuality "1"]
[TimeControl "40/5400+30:1800+30"]

1. e4 {[%emt 0:00:18]} c5 {[%emt 0:00:32]} 2. Nf3 {[%emt 0:00:04]} Nc6 {[%emt 0:00:09]} 3. d4 {[%emt 0:00:07]} cxd4 {[%emt 0:00:08]} 4. Nxd4 {[%emt 0:00:03]} e5 {[%emt 0:00:14]} 5. Nb5 {[%emt 0:00:17]} d6 {[%emt 0:00:23]} 6. N1c3 {[%emt 0:00:20]} a6 {[%emt 0:00:20]} 7. Na3 {[%emt 0:00:03]} Be6 {[%emt 0:00:17]} 8. Nd5 {[%emt 0:00:55]} Nf6 {[%emt 0:00:57]} 9. Bg5 {[%emt 0:00:20]} Bxd5 {[%emt 1:32:00]} 10. Qxd5 {[%emt 0:16:59]} Nxd5 {[%emt 0:00:00]} 11. Bxd8 {[%emt 0:00:09]} Nc3 {[%emt 0:00:00]} 12. bxc3 {[%emt 0:00:04]} Nxd8 {[%emt 0:00:00]} 13. Nc4 {[%emt 0:01:05]} Rc8 {[%emt 0:00:00]} 14. a4 {[%emt 0:05:59]} Ne6 {[%emt 0:00:00]} 15. f3 {[%emt 0:01:24]} Be7 {[%emt 0:00:00]} 16. Rb1 {[%emt 0:03:49]} Rc7 {[%emt 0:00:00]} 17. Bd3 {[%emt 0:08:17]} Nc5 {[%emt 0:00:00]} 18. Nb6 {[%emt 0:10:22]} Bd8 {[%emt 0:00:00]} 19. O-O {[%emt 0:06:44]} O-O {[%emt 0:00:00]} 20. a5 {[%emt 0:10:46]} Rc6 {[%emt 0:00:00]} 21. Bc4 {[%emt 0:10:56]} Bxb6 {[%emt 0:00:00]} 22. axb6 {[%emt 0:01:00]} Rcc8 {[%emt 0:00:00]} 23. Bd5 {[%emt 0:00:13]} g6 {[%emt 0:00:00]} 24. f4 {[%emt 0:04:41]} exf4 {[%emt 0:00:00]} 25. Rxf4 {[%emt 0:00:28]} Kg7 {[%emt 0:00:00]} 26. h4 {[%emt 0:01:29]} Rce8 {[%emt 0:00:00]} 27. g4 {[%emt 0:02:12]} h6 {[%emt 0:00:00]} 28. Rbf1 {[%emt 0:06:15]} Re7 {[%emt 0:01:44]} 29. g5 {[%emt 0:05:18]} hxg5 {[%emt 0:00:46]} 30. hxg5 {[%emt 0:00:02]} Ne6 {[%emt 0:03:14]} 31. Rg4 {[%emt 0:00:55]} Rh8 {[%emt 0:01:04]} 32. Rf3 {[%emt 0:02:58]} Rh5 {[%emt 0:00:30]} 33. Rfg3 {[%emt 0:00:02]} Kf8 {[%emt 0:01:44]} 34. c4 {[%emt 0:00:20]} Ke8 {[%emt 0:00:13]} 35. Kf2 {[%emt 0:01:16]} Nd4 {[%emt 0:03:45]} 36. c3 Ne6 {[%emt 0:00:00]} 37. Ke3 {[%emt 0:01:04]} Nc5 {[%emt 0:00:00]} 38. Rf3 {[%emt 0:01:02]} Na4 {[%emt 0:00:00]} 39. Rgf4 {[%emt 0:00:02]} Rh7 {[%emt 0:00:00]} 40. Rf6 {[%emt 0:00:08]} Rd7 {[%emt 0:00:08]} 41. e5 {[%emt 0:08:23]} dxe5 {[%emt 0:02:36]} 42. Ke4 {[%emt 0:05:08]} Re7 {[%emt 0:00:47]} 43. Bc6+ {[%emt 0:00:26]} bxc6 {[%emt 0:01:15]} 44. Rxc6 {[%emt 0:20:07]} Rh4+ {[%emt 0:14:00]} 45. Kd5 {[%emt 0:00:00]} Kd8 {[%emt 0:01:06]} 46. Rd6+ {[%emt 0:00:00]} Kc8 {[%emt 0:00:18]} 47. Rdf6 {[%emt 0:00:00]} Rd7+ {[%emt 0:04:31]} 48. Kxe5 {[%emt 0:00:00]} Rxc4 {[%emt 0:00:06]} 49. Rxf7 {[%emt 0:00:00]} Rc5+ {[%emt 0:00:11]} 50. Ke6 {[%emt 0:00:00]} Rc6+ {[%emt 0:00:44]} 51. Ke5 {[%emt 0:00:00]} Nxb6 {[%emt 0:01:54]} 52. R3f6 {[%emt 0:00:00]} Rc5+ {[%emt 0:01:15]} 53. Ke4 {[%emt 0:00:00]} Rxf7 {[%emt 0:00:36]} 54. Rxf7 {[%emt 0:00:00]} Rxg5 {[%emt 0:00:11]} 55. Kd4 {[%emt 0:05:30]} 0-1

[Event "Bangabandhu Premier Div League 2023-24"]
[Site "Dhaka"]
[Date "2024.02.02"]
[Round "2.1"]
[White "Alekhya Mukhopadhyay"]
[Black "Majumder, Ahmed Hossain"]
[Result "1-0"]
[ECO "B98"]
[WhiteElo "2184"]
[BlackElo "1934"]
[Annotator "RC"]
[PlyCount "47"]
[EventDate "2024.02.01"]
[EventCountry "BAN"]
[SourceTitle "playchess.com"]
[Source "ChessBase"]
[SourceQuality "1"]
[TimeControl "40/5400+30:1800+30"]

1. e4 {[%emt 0:00:08]} c5 {[%emt 0:02:04]} 2. Nf3 d6 {[%emt 0:01:33]} 3. d4 {[%emt 0:00:24]} cxd4 {[%emt 0:00:14]} 4. Nxd4 {[%emt 0:00:05]} Nf6 {[%emt 0:00:17]} 5. Nc3 a6 {[%emt 0:00:33]} 6. Bg5 e6 {[%emt 0:02:28]} 7. f4 {[%emt 0:00:00]} Be7 8. Qf3 Qc7 {[%emt 0:09:10]} 9. O-O-O {[%emt 1:34:23]} Nc6 {[%emt 0:08:10]} 10. Nxc6 {[%emt 0:00:00]} Qxc6 {[%emt 0:02:18]} 11. e5 {[%emt 0:00:00]} Qxf3 {[%emt 0:01:23]} 12. gxf3 {[%emt 0:00:00]} dxe5 {[%emt 0:00:31]} 13. fxe5 {[%emt 0:00:00]} Nd7 {[%emt 0:06:34]} 14. Bxe7 {[%emt 0:00:00]} Kxe7 {[%emt 0:00:51]} 15. f4 {[%emt 0:00:00]} g5 {[%emt 0:00:41]} 16. fxg5 {[%emt 0:00:00]} Nxe5 {[%emt 0:01:12]} 17. Bg2 {[%emt 0:04:00]} h6 {[%emt 0:02:36]} 18. Rhe1 {[%emt 0:00:30]} Nd7 {[%emt 0:05:54]} 19. Nd5+ {[%emt 0:00:00]} Kf8 {[%emt 0:04:02]} 20. Nf6 {[%emt 0:01:00]} Nxf6 {[%emt 0:08:34]} 21. gxf6 {[%emt 0:00:30]} Ke8 {[%emt 0:00:25]} 22. Rd6 {[%emt 0:00:30]} Bd7 {[%emt 0:42:00]} 23. Red1 {[%emt 0:00:30]} Bb5 {[%emt 0:00:00]} 24. c4 {[%emt 0:00:00]} 1-0

[Event "Bangabandhu Premier Div League 2023-24"]
[Site "Dhaka"]
[Date "2024.02.02"]
[Round "2.2"]
[White "Puranik, Abhimanyu"]
[Black "Ahmed, Sheikh Nasir"]
[Result "1-0"]
[ECO "D38"]
[WhiteElo "2645"]
[BlackElo "2182"]
[Annotator "TA"]
[PlyCount "105"]
[EventDate "2024.02.01"]
[EventCountry "BAN"]
[SourceTitle "playchess.com"]
[Source "ChessBase"]
[SourceQuality "1"]
[TimeControl "40/5400+30:1800+30"]

{[%evp 18,105,20,20,20,17,35,44,25,0,10,6,25,37,36,39,87,89,108,110,113,104,166,163,176,151,155,148,208,167,185,156,151,153,151,133,114,106,164,164,173,164,173,177,272,274,273,258,272,264,266,254,277,277,294,254,255,269,270,252,401,397,453,440,443,426,651,650,691,679,693,690,679,682,736,653,835,714,780,731,6398,6186,12834,10347,12833,10932,5984,5493,5493,5206]} 1. d4 {[%emt 0:00:03]} Nf6 {[%emt 0:08:13]} 2. c4 {[%emt 0:00:06]} e6 {[%emt 0:00:07]} 3. Nf3 {[%emt 0:00:03]} d5 {[%emt 0:00:42]} 4. Nc3 {[%emt 0:00:07]} Bb4 {[%emt 0:00:17]} 5. Bg5 {[%emt 0:01:02]} h6 {[%emt 0:02:30]} 6. Bxf6 {[%emt 0:00:30]} Qxf6 7. e3 O-O {[%emt 0:01:26]} 8. Rc1 dxc4 {[%emt 0:14:56]} 9. Bxc4 {[%emt 0:01:00]} c5 {[%emt 0:00:14]} 10. O-O {[%emt 0:01:10] next Ne4 is good for White.} cxd4 {[%emt 0:01:51]} 11. Ne4 {[%emt 0:03:47]} Qd8 {[%emt 0:03:01]} 12. exd4 {[%emt 0:00:49]} Nd7 {[%emt 0:09:09] White is slightly better.} 13. d5 {[%emt 0:15:09]} exd5 {[%emt 0:00:08]} 14. Bxd5 {[%emt 0:00:02]} Be7 {[%emt 0:00:33]} 15. Bb3 {[%emt 0:06:18]} Nf6 {[%emt 0:02:08]} 16. Qxd8 {[%emt 0:04:07]} Bxd8 {[%emt 0:05:33]} (16... Rxd8 $14 17. Rc7 Kf8) 17. Nd6 $16 {[%emt 0:00:13]} Bb6 {[%emt 0:09:38]} 18. Nxf7 {[%emt 0:01:51] Threatens to win with N7g5+. White has more active pieces. The black rooks are passive.} Kh7 {[%emt 0:00:07]} (18... Rxf7 $2 {too greedy.} 19. Ne5 $18) 19. N3e5 {[%emt 0:06:08]} Re8 {[%emt 0:03:57] [#]} (19... Bg4 $16) 20. Nc4 $1 $18 {[%emt 0:02:01] Excellent horsemanship.} Re2 {[%emt 0:02:59]} 21. Rc2 {[%emt 0:06:14]} Rxc2 {[%emt 0:02:08]} 22. Bxc2+ {[%emt 0:00:04]} g6 {[%emt 0:00:08]} (22... Kg8 $16) 23. Nxb6 {[%emt 0:03:47]} axb6 {[%emt 0:00:04]} 24. Bb3 {[%emt 0:00:03]} Bd7 {[%emt 0:01:31]} 25. Rc1 {[%emt 0:03:25]} Ba4 {[%emt 0:01:42]} 26. f3 {[%emt 0:04:29]} Bxb3 {[%emt 0:00:22]} 27. axb3 $16 {[%emt 0:00:03][%mdl 4096] Endgame. KRN-KRN} Nd5 {[%emt 0:30:36] Prevents Rc7} (27... Ra2 $16) 28. Rd1 $18 {[%emt 0:02:08]} Ra5 {[%emt 0:00:00]} 29. Nd6 {[%emt 0:01:04]} Ne3 {[%emt 0:00:00]} 30. Rd2 {[%emt 0:04:43]} Rd5 {[%emt 0:00:00]} (30... Nf5 $142 31. Nc4 (31. Nxb7 Rb5 $16) 31... Ra1+ 32. Kf2 b5) 31. Rxd5 {[%emt 0:02:16]} Nxd5 {[%emt 0:02:00]} 32. Nxb7 {[%emt 0:00:04] KN-KN} Kg7 {[%emt 0:00:00]} 33. Nd6 {[%emt 0:00:34]} Kf6 {[%emt 0:00:00]} 34. Nc4 {[%emt 0:01:42]} b5 {[%emt 0:00:00]} 35. Na3 {[%emt 0:00:44]} Nc7 {[%emt 0:00:00]} 36. Kf2 {[%emt 0:00:15]} Ke5 {[%emt 0:00:00]} 37. Ke3 {[%emt 0:00:37]} Nd5+ {[%emt 0:00:00]} 38. Kd2 {[%emt 0:00:26]} b4 {[%emt 0:00:00]} (38... Nc7 $142 39. g3 Kd5) 39. Nc2 {[%emt 0:00:12]} h5 {[%emt 0:00:00]} 40. g3 {[%emt 0:00:06] White is clearly winning.} h4 {[%emt 0:00:00]} 41. Kd3 {[%emt 0:30:57]} ({Not} 41. gxh4 Ne7 42. Nxb4 Nf5 43. Nd3+ Kd6 $18) 41... hxg3 {[%emt 0:25:22]} (41... h3 $142 42. f4+ Ke6) 42. hxg3 {[%emt 0:00:03]} g5 {[%emt 0:01:48]} 43. Ne3 {[%emt 0:01:52] [#] And now Nxd5 would win.} Ne7 {[%emt 0:00:45]} 44. Kc4 {[%emt 0:00:21]} Nc6 {[%emt 0:00:24]} 45. Kc5 {[%emt 0:00:08] White threatens Nc4+ and mate.} Ne7 {[%emt 0:01:29]} 46. Nc4+ {[%emt 0:00:48]} Kf6 {[%emt 0:00:48]} 47. g4 {[%emt 0:01:15]} Ng6 {[%emt 0:00:09]} 48. Kxb4 {[%emt 0:00:10]} Nh4 {[%emt 0:00:02]} 49. Nd2 {[%emt 0:00:09] Strongly threatening Kc5.} Ke5 {[%emt 0:00:53]} 50. Kc5 {[%emt 0:00:35]} Ng2 {[%emt 0:00:26]} 51. b4 {[%emt 0:00:15]} Nf4 {[%emt 0:00:13]} 52. b5 {[%emt 0:00:12]} Nd3+ {[%emt 0:00:12]} 53. Kc6 {[%emt 0:00:06] Weighted Error Value: White=0.05 (flawless) /Black=0.28 (precise) .  Mistake:       	---       	Black=7      OK:         	White=14    	Black=11     Best:        	White=3     	Black=1      Strong:       	White=1     	---} 1-0